Workbook

Sheet Mediciones y presupuesto
E4: MEDICIONES Y PRESUPUESTO
B5: BOLIBAR IRTEERA HODI ETA SEKTORIALA BERR
B7: CÓDIGO | D7: DESCRIPCIÓN | E7: UDS. | F7: LONG. | G7: ALTURA | H7: ANCHURA | I7: PARCIALES | J7: CANT. | K7: PRECIO | L7: IMPORTE
D11: MOVIMIENTO DE TIERRAS Y DEMOLICIONES
D13: DEMOLICIONES
B14: DEM_H_MMAN | D14: M3 DEMOL HGÓN MEDIOS MANUALES
D15: Demolición de hormigón con medios manuales, de cualquier tipo, dimensión y profundidad, incluso carga y transporte de productos sobrantes a vertedero y canon de vertido.
D16: Camara de llaves | E16: 1.00 | F16: 18.00 | G16: 0.65 | I16: 11.70
J17: 11.70 | K17: 104.74 € | L17: =ROUND(J17*K17,2) -> 1,225.46 €
D19: TOTAL DEMOLICIONES | L19: =L17 -> 1,225.46 €
D21: EXCAVACIONES
B22: EXC_CIE_AB_TI | D22: M3 EXCAV. A CIELO ABIERTO EN TIERRA
D23: Excavación y carga a cielo abierto, en obra de explanación por medios mecánicos en tierras de cualquier tipo, medidas sobre perfil, incluso transporte a vertedero o lugar de empleo y canon de vertido de los materiales sobrantes.
D24: Explanacion frente depósito | E24: 1.00 | F24: 20.00 | G24: 0.50 | H24: 5.00 | I24: 50.00
D25: Prezanja Sala Red Alta-Remate desagüe 2 | E25: 1.00 | F25: 14.00 | G25: 1.00 | H25: 3.00 | I25: 42.00
D26: Prezanja PR2-Remate desagüe 1 | E26: 1.00 | F26: 10.00 | G26: 1.00 | H26: 3.00 | I26: 30.00
J27: 122.00 | K27: 18.72 € | L27: =ROUND(J27*K27,2) -> 2,283.84 €
D29: TOTAL EXCAVACIONES | L29: =L27 -> 2,283.84 €
D31: RELLENOS
B32: TER_TI_EXC | D32: M3 TERRAPLEN TIERRAS DE EXCAVACION
D33: Terraplén con tierras procedentes de la misma excavación, extendido y compactado al 95% de P.M. en obras de explanación.
D34: Explanacion frente depósito | E34: 1.00 | F34: 20.00 | G34: 0.20 | H34: 5.00 | I34: 20.00
D35: Prezanja Sala Red Alta-Remate desagüe 2 | E35: 1.00 | F35: 14.00 | G35: 1.00 | H35: 3.00 | I35: 42.00
D36: Prezanja PR2-Remate desagüe 1 | E36: 1.00 | F36: 10.00 | G36: 1.00 | H36: 3.00 | I36: 30.00
J37: 92.00 | K37: 9.11 € | L37: =ROUND(J37*K37,2) -> 838.12 €
D39: TOTAL RELLENOS | L39: =L37 -> 838.12 €
D41: ELTOS AUX EN EXCAVACIONES
B42: CATA_OBRA_RURAL | D42: 0009 CATA 1,20x1,20x1,40 M EN TIERRAS (OBRA)
D43: Cata de 1,20 x 1,20 x 1,40 m., en zona rural, para localización de servicios durante la ejecución de la obra, incluída la excavación por mecánicos o manuales, agotamientos, relleno y compactación con material de la propia excavación.
D44: Previsión | E44: 2.00 | I44: 2.00
J45: 2.00 | K45: 98.00 € | L45: =ROUND(J45*K45,2) -> 196.00 €
B47: ENTIB LIG ALUM | D47: 0010 ENTIB LIG ALUM H<2,40 M
D48: Entibación ligera de aluminio para contención de tierras en zanjas y pozos de registro de hasta 2,40 mts. de profundidad, configurada mediante guías de esquina y planchas de 0,60 mts. acodaladas con puntales telescópicos. Incluso suministro, montaje y desmontaje en obra, manipulación y coste de inmovilización durante el tiempo de duración de trabajos, así como los sistemas de protección de borde indicados por el fabricante, medida segun longitud de zanja ejecutada.
D49: Sala Red Alta-Remate desagüe 2 | E49: 1.00 | F49: 14.00 | I49: 14.00
D50: PR2-Remate desagüe 1 | E50: 1.00 | F50: 10.00 | I50: 10.00
J51: 24.00 | K51: 21.82 € | L51: =ROUND(J51*K51,2) -> 523.68 €
D53: TOTAL ELTOS AUX EN EXCAVACIONES | L53: =L45+L51 -> 719.68 €
D55: ZANJAS TIPO
B56: ZJA_ABS_TIP_III_TIER | D56: ML ZANJA SECCION TIPO ZJA_ABS_TIP_III_TIER
D57: Apertura y cierre de zanja en tierras, en todo tipo de terreno, incluso roca, a mano o a máquina para tubería de abastecimiento y profundidad de rasante inferior de tubo hasta 1,50 m, que incluye parte proporcional de agotamiento, cama y recubrimiento de arena, cinta señalizadora, relleno con material seleccionado de la excavación, incluso carga y transporte a lugar de empleo o vertedero y eventual canon de vertido de tuberías existentes y de sobrantes, según SECCIÓN TIPO ZJA_ABS_TIP_III_TIER, medida la longitud real.
D58: Distribución | E58: 1.00 | F58: 18.00 | I58: 18.00
J59: 18.00 | K59: 24.00 € | L59: =ROUND(J59*K59,2) -> 432.00 €
B61: ZJA_SAN_TIP_III_TIER | D61: ML ZANJA SECCION TIPO ZJA_SAN_TIP_III_TIER
D62: Apertura y cierre de zanja de saneamiento en tierras, cuando H>0,60 m, en todo tipo de terreno, incluso roca, a mano o a máquina para tubería de PVC o PE y profundidad de rasante inferior de tubo hasta 1,50 m, que incluye parte proporcional de agotamiento, cama y recubrimiento de arena, cinta señalizadora, relleno con material seleccionado procedente de excavación, carga y transporte de sobrantes a lugar de empleo o vertedero y eventual canon de vertido, según SECCION TIPO ZJA_SAN_TIP_III_TIER, medida la longitud real.
D63: Cámara de llaves - PR1 | E63: 1.00 | F63: 3.00 | I63: 3.00
D64: PR1-PR2 | E64: 1.00 | F64: 14.00 | I64: 14.00
D65: PR2-Remate desagüe 1 | E65: 1.00 | F65: 10.00 | I65: 10.00
D66: Sala control - Remate desagüe 2 | E66: 1.00 | F66: 18.00 | I66: 18.00
J67: 45.00 | K67: 43.01 € | L67: =ROUND(J67*K67,2) -> 1,935.45 €
D69: TOTAL ZANJAS TIPO | L69: =L59+L67 -> 2,367.45 €
D71: TOTAL MOVIMIENTO DE TIERRAS Y DEMOLICIONES | L71: =L19+L29+L39+L53+L69 -> 7,434.55 €
D73: SANEAMIENTO
D75: TUBERÍAS DE PVC
B76: PVC TØ315 | D76: 0008 TUBERÍA PVC TEJA Ø 315 MM
D77: Colector de PVC rígido, color TEJA, de 315 mm. de diámetro y espesor de 7,7 mm - SN4 (UNE-EN 1401), incluso p.p. de codos, junta elástica bilabial, piezas especiales, conexiones,....colocada y probada.
D78: PR1-PR2 | E78: 1.00 | F78: 14.00 | I78: 14.00
D79: PR2-Remate desagüe 1 | E79: 1.00 | F79: 10.00 | I79: 10.00
J80: 24.00 | K80: 37.36 € | L80: =ROUND(J80*K80,2) -> 896.64 €
B82: PVC TØ250 | D82: 0008 TUBERÍA PVC TEJA Ø 250 MM
D83: Colector de PVC rígido, color TEJA, de 250 mm. de diámetro y espesor de 6,2 mm - SN4 (UNE-EN 1401), incluso p.p. de codos, junta elástica bilabial, piezas especiales, conexiones,....colocada y probada.
D84: Cámara de llaves - PR1 | E84: 1.00 | F84: 3.00 | I84: 3.00
J85: 3.00 | K85: 29.39 € | L85: =ROUND(J85*K85,2) -> 88.17 €
B87: PVC TØ200 | D87: 0008 TUBERÍA PVC TEJA Ø 200 MM
D88: Colector de PVC rígido, color TEJA, de 200 mm. de diámetro y espesor de 4,9 mm - SN4 (UNE-EN 1401), incluso p.p. de codos, junta elástica bilabial, piezas especiales, conexiones,....colocada y probada.
D89: Sala control - Remate desagüe 2 | E89: 1.00 | F89: 18.00 | I89: 18.00
J90: 18.00 | K90: 21.90 € | L90: =ROUND(J90*K90,2) -> 394.20 €
D92: TOTAL TUBERÍAS DE PVC | L92: =L80+L85+L90 -> 1,379.01 €
D94: TOTAL SANEAMIENTO | L94: =L92 -> 1,379.01 €
D96: ABASTECIMIENTO
D98: FUNDICIÓN DÚCTIL
D99: TUBERÍAS FUNDICIÓN DÚCTIL
B100: FD Ø200 | D100: 0008 TUBERIA FUNDICION DÚCTIL Ø 200
D101: Tubería de FD de 200 mm. de diámetro con junta automática flexible, revestimiento interior con mortero de cemento y revestimiento exterior con barniz, según norma UNE-EN-545, incluso p.p. juntas, montaje, pruebas y desinfección.
D102: Distribución | E102: 1.00 | F102: 18.00 | I102: 18.00
J103: 18.00 | K103: 55.89 € | L103: =ROUND(J103*K103,2) -> 1,006.02 €
D105: TOTAL TUBERÍAS FUNDICIÓN DÚCTIL | L105: =L103 -> 1,006.02 €
D107: CODOS DE FUND. DÚCTIL
B108: C_BB_45_Ø200 | D108: UN CODO FD BB 45 º Ø200
D109: Codo de fundición dúctil brida - brida de 45º y de diámetro 200 mm., PN 16, revestimiento exterior e interior según norma UNE EN 545, incluso p.p de juntas, tornillos, montaje, pruebas y desinfección.
D110: Derivación a Bombeo | E110: 2.00 | I110: 2.00
J111: 2.00 | K111: 220.03 € | L111: =ROUND(J111*K111,2) -> 440.06 €
B113: C_BB_45_Ø80 | D113: UN CODO FD BB 45 º Ø80
D114: Codo de fundición dúctil brida - brida de 45º y de diámetro 80 mm., PN 16, revestimiento exterior e interior según norma UNE EN 545, incluso p.p de juntas, tornillos, montaje, pruebas y desinfección.
D115: Derivación a Bombeo | E115: 1.00 | I115: 1.00
J116: 1.00 | K116: 92.79 € | L116: =ROUND(J116*K116,2) -> 92.79 €
D118: TOTAL CODOS DE FUND. DÚCTIL | L118: =L111+L116 -> 532.85 €
D120: TES DE FUND. DÚCTIL
B121: T_BBB_200X80 | D121: UN PIEZA EN TE DE FD, PN 16 BBB 200x80
D122: TE de fundición dúctil brida - brida - brida de diámetro 200 mm. con salida de diámetro 80 mm., PN 16, revestimiento exterior e interior según norma UNE EN 545, incluso p.p de juntas, tornillos, montaje, pruebas y desinfección.
D123: Derivación a Bombeo | E123: 1.00 | I123: 1.00
J124: 1.00 | K124: 278.54 € | L124: =ROUND(J124*K124,2) -> 278.54 €
D126: TOTAL TES DE FUND. DÚCTIL | L126: =L124 -> 278.54 €
D128: CONOS FUNDICION DÚCTIL
B129: CON_BB_200 | D129: UN CONO RED. BB 200
D130: Cono de reducción brida - brida de diámetro mayor 200 mm. y diámetro menor según proyecto, PN 16, revestimiento exterior e interior según norma UNE EN 545, incluso p.p de juntas, tornillos, montaje, pruebas y desinfección.
D131: By-pass provisional a bombeo | E131: 1.00 | I131: 1.00
J132: 1.00 | K132: 162.90 € | L132: =ROUND(J132*K132,2) -> 162.90 €
B134: CON_BB_100 | D134: UN CONO RED. BB 100
D135: Cono de reducción brida - brida de diámetro mayor 100 mm. y diámetro menor según proyecto, PN 16, revestimiento exterior e interior según norma UNE EN 545, incluso p.p de juntas, tornillos, montaje, pruebas y desinfección.
D136: By-pass provisional a bombeo | E136: 1.00 | I136: 1.00
J137: 1.00 | K137: 96.66 € | L137: =ROUND(J137*K137,2) -> 96.66 €
D139: TOTAL CONOS FUNDICION DÚCTIL | L139: =L132+L137 -> 259.56 €
D141: BRIDAS CIEGAS Y ROSCADAS
B142: BRØ200 | D142: UN BRIDA ROSCADA Ø200
D143: Brida roscada de funfición dúctil de diámetro 200 mm. con salida roscada de diámetro según proyecto., PN 16, revestimiento exterior e interior según norma UNE EN 545, incluso p.p de juntas, tornillos, montaje, pruebas y desinfección.
D144: By-pass provisional a bombeo | E144: 1.00 | I144: 1.00
J145: 1.00 | K145: 99.83 € | L145: =ROUND(J145*K145,2) -> 99.83 €
D147: TOTAL BRIDAS CIEGAS Y ROSCADAS | L147: =L145 -> 99.83 €
D149: EMPALMES BRIDA ENCHUFE
B150: BEØ200 | D150: UN EMPALME BRIDA ENCHUFE Ø200
D151: Empalme de fundición dúctil brida - enchufe de diámetro 200 mm., revestimiento exterior e interior según norma UNE EN 545, incluso p.p de juntas, tornillos, montaje, pruebas y desinfección.
D152: Conexión salida cámara de llaves | E152: 1.00 | I152: 1.00
D153: Derivación a Bombeo | E153: 2.00 | I153: 2.00
J154: 3.00 | K154: 132.67 € | L154: =ROUND(J154*K154,2) -> 398.01 €
B156: BEØ80 | D156: UN EMPALME BRIDA ENCHUFE Ø80
D157: Empalme de fundición dúctil brida - enchufe de diámetro 80 mm., revestimiento exterior e interior según norma UNE EN 545, incluso p.p de juntas, tornillos, montaje, pruebas y desinfección.
D158: Derivación a Bombeo | E158: 1.00 | I158: 1.00
J159: 1.00 | K159: 57.91 € | L159: =ROUND(J159*K159,2) -> 57.91 €
D161: TOTAL EMPALMES BRIDA ENCHUFE | L161: =L154+L159 -> 455.92 €
D163: BRIDAS MÓVILES
B164: B_MOV_Ø100 | D164: UN BRIDA MÓVIL Ø100
D165: Brida móvil de fundición dúctil de diámetro 100 mm., revestimiento exterior e interior según norma UNE EN 545, incluso p.p de juntas, tornillos, montaje, pruebas y desinfección.
D166: By-pass provisional a bombeo | E166: 2.00 | I166: 2.00
J167: 2.00 | K167: 35.91 € | L167: =ROUND(J167*K167,2) -> 71.82 €
D169: TOTAL BRIDAS MÓVILES | L169: =L167 -> 71.82 €
D171: BRIDAS ENCHUFES UNIVERSALES
B172: BE_UNIV_Ø200 | D172: UN BRIDA ENCHUFE UNIVERSAL FD Ø200
D173: Brida enchufe universal de fundición ductil, DN 200 mm., para unión de tubos de igual o distinto material, con revestimiento interior y exterior de epoxi, según norma UNE EN 545, incluso p.p de juntas, tornillos, montaje, pruebas y desinfección.
D174: Cámara de llaves | E174: 2.00 | I174: 2.00
J175: 2.00 | K175: 243.97 € | L175: =ROUND(J175*K175,2) -> 487.94 €
B177: BE_UNIV_Ø150 | D177: UN BRIDA ENCHUFE UNIVERSAL FD Ø150
D178: Brida enchufe universal de fundición ductil, DN 150 mm., para unión de tubos de igual o distinto material, con revestimiento interior y exterior de epoxi, según norma UNE EN 545, incluso p.p de juntas, tornillos, montaje, pruebas y desinfección.
D179: Cámara de llaves | E179: 2.00 | I179: 2.00
J180: 2.00 | K180: 165.60 € | L180: =ROUND(J180*K180,2) -> 331.20 €
D182: TOTAL BRIDAS ENCHUFES UNIVERSALES | L182: =L175+L180 -> 819.14 €
D184: TOTAL FUNDICIÓN DÚCTIL | L184: =L105+L118+L126+L139+L147+L161+L169+L182 -> 3,523.68 €
D186: POLIETILENO ALTA DENSIDAD
D187: TUBERÍAS DE POLIETILENO
B188: PEAD 110 | D188: UN TUBERÍA PEAD DN 110 PN 16
D189: Tubería de polietileno PE-100 de alta densidad, diámetro exterior 110 mm y presión nominal de 1,60 Mpa, incluso p.p de colocación, piezas especiales, pruebas y desinfección.
D190: By-pass provisional a bombeo | E190: 6.00 | I190: 6.00
J191: 6.00 | K191: 16.12 € | L191: =ROUND(J191*K191,2) -> 96.72 €
D193: TOTAL TUBERÍAS DE POLIETILENO | L193: =L191 -> 96.72 €
D195: PIEZAS POLIETILENO
B196: MAN_ES_110 | D196: UN MANGUITO ELECTROSOLDABLE DN:110
D197: Incluso suministro, montaje y pruebas, totalmente instalado.
D198: By-pass provisional a bombeo | E198: 2.00 | I198: 2.00
J199: 2.00 | K199: 21.63 € | L199: =ROUND(J199*K199,2) -> 43.26 €
B201: VALONA_110 | D201: 0005 VALONA DE POLIETILENO INYECTADO DN 110
D202: Incluso suministro, montaje y pruebas, totalmente instalado.
D203: By-pass provisional a bombeo | E203: 2.00 | I203: 2.00
J204: 2.00 | K204: 6.93 € | L204: =ROUND(J204*K204,2) -> 13.86 €
D206: TOTAL PIEZAS POLIETILENO | L206: =L199+L204 -> 57.12 €
D208: TOTAL POLIETILENO ALTA DENSIDAD | L208: =L193+L206 -> 153.84 €
D210: VÁLVULAS
D211: VÁLV. COMPUERTA ASIENTO ELÁSTICO
B212: VCAE Ø80 | D212: UN VALV. COMP. AS. ELAST. Ø80
D213: Válvula de compuerta de asiento elástico de fundición dúctil con unión mediante bridas y recubrimiento elastómero, eje de acero inoxidable, PN 16 y diámetro Ø80, distancia entre bridas reducida, según EN 1074, incluso p.p. de juntas, tornillos de acero inoxidable, cinta señalizadora, montaje, pruebas y desinfección.
D214: Derivación a Bombeo | E214: 1.00 | I214: 1.00
J215: 1.00 | K215: 197.70 € | L215: =ROUND(J215*K215,2) -> 197.70 €
D217: TOTAL VÁLV. COMPUERTA ASIENTO ELÁSTICO | L217: =L215 -> 197.70 €
D219: TOTAL VÁLVULAS | L219: =L217 -> 197.70 €
D221: TOTAL ABASTECIMIENTO | L221: =L184+L208+L219 -> 3,875.22 €
D223: ARQUETAS
B225: ARQ_40_HGON | D225: UN ARQUETA REGISTRO 40x40 HORMIGON
D226: Arqueta de registro de hormigón de dimensiones interiores 40 x 40 cm., incluso marco y tapa de fundición dúctil C-250, superficie peatonal antideslizante, incluso demoliciones, excavaciones, conexiones, agotamiento, obras de fábrica, completamente terminado.
D227: Sumidero caseta control ALTA | E227: 1.00 | I227: 1.00
J228: 1.00 | K228: 270.94 € | L228: =ROUND(J228*K228,2) -> 270.94 €
B230: ARQ_60_HGON | D230: UN ARQUETA REGISTRO 60x60 HORMIGON
D231: Arqueta de registro de hormigón de dimensiones interiores 60 x 60 cm., incluso marco y tapa de fundición dúctil C-250, superficie peatonal antideslizante, incluso demoliciones, excavaciones, conexiones, agotamiento, obras de fábrica, completamente terminado.
D232: Sumidero cámara de llaves | E232: 1.00 | I232: 1.00
J233: 1.00 | K233: 432.49 € | L233: =ROUND(J233*K233,2) -> 432.49 €
B235: ARQ_80_HGON | D235: UN ARQUETA REGISTRO 80x80 HORMIGON
D236: Arqueta de registro de hormigón de dimensiones interiores 80 x 80 cm., incluso marco y tapa de fundición dúctil C-250, superficie peatonal antideslizante, incluso demoliciones, excavaciones, conexiones, agotamiento, obras de fábrica, completamente terminado.
D237: Derivación bombeo | E237: 1.00 | I237: 1.00
J238: 1.00 | K238: 731.11 € | L238: =ROUND(J238*K238,2) -> 731.11 €
B240: PR 1 _PF-2 | D240: UN P.R. 1000 BASE Y ELEMENTOS PREF. HASTA
D241: Pozo de registro prefabricado de diámetro interior 1,00 m, con base prefabricada, alzados con anillos de hormigón armado y cono o losa de reducción a Ø65, de profundidad menor de 2 m., incluso excavación, hormigón de relleno, juntas de estanqueidad entre elementos, pates, marco y tapa de fundición normalizada (D-400), completamente terminado.
D242: PR1 | E242: 1.00 | I242: 1.00
J243: 1.00 | K243: 863.01 € | L243: =ROUND(J243*K243,2) -> 863.01 €
B245: PR 1 _PF 2 | D245: UN P.R. 1000 BASE Y ELEMENTOS PREF. MAYOR
D246: Pozo de registro prefabricado de diámetro interior 1,00 m, con base prefabricada, alzados con anillos de hormigón armado y cono o losa de reducción a Ø65, de profundidad mayor de 2 m., incluso excavación, hormigón de relleno, juntas de estanqueidad entre elementos, pates, marco y tapa de fundición normalizada, completamente terminado.
D247: PR2 | E247: 1.00 | I247: 1.00
J248: 1.00 | K248: 1,240.89 € | L248: =ROUND(J248*K248,2) -> 1,240.89 €
D250: TOTAL ARQUETAS | L250: =L228+L233+L238+L243+L248 -> 3,538.44 €
D252: PAVIMENTACION Y URBANIZACION
D254: PAVIMENTOS ASFÁLTICOS
B255: SUB_GR | D255: M3 SUB-BASE GRANULAR
D256: Sub-base granular, incluso suministro en obra del material, extendido, riego y compactación al 97% del P.M.
D257: Explanacion frente depósito (mejora) | E257: 1.00 | F257: 20.00 | G257: 0.30 | H257: 5.00 | I257: 30.00
J258: 30.00 | K258: 33.74 € | L258: =ROUND(J258*K258,2) -> 1,012.20 €
D260: TOTAL PAVIMENTOS ASFÁLTICOS | L260: =L258 -> 1,012.20 €
D262: HORMIGONES
B263: HGON_RELL_20 | D263: M3 HORM. RELLENO HM-20 (1,3<HR<5 m)
D264: Base de hormigón HM-20 para protección de tuberías en zanjas de profundidades comprendidad entre 1,30 y 5,00 m, en recubrimiento de tubería, colocado y vibrado.
D265: Previsión | E265: 3.00 | F265: 1.00 | G265: 0.80 | H265: 0.80 | I265: 1.92
J266: 1.92 | K266: 113.29 € | L266: =ROUND(J266*K266,2) -> 217.52 €
D268: TOTAL HORMIGONES | L268: =L266 -> 217.52 €
D270: TOTAL PAVIMENTACION Y URBANIZACION | L270: =L260+L268 -> 1,229.72 €
D272: REHABILITACIÓN ESTRUCTURAL DE DEPÓSITOS
... 160 more rows

Sheet resumen de presupuesto
D4: RESUMEN DE PRESUPUESTO
B7: OBRA: | C7: BOLIBAR IRTEERA HODI ETA SEKTORIALA BERR
B10: CAPÍTULO | C10: RESUMEN | I10: EUROS | J10: %
B13: 1 | C13: MOVIMIENTO DE TIERRAS Y DEMOLICIONES | I13: 7,434.55 € | J13: 11.00%
B14: 2 | C14: SANEAMIENTO | I14: 1,379.01 € | J14: 2.00%
B15: 3 | C15: ABASTECIMIENTO | I15: 3,875.22 € | J15: 6.00%
B16: 4 | C16: ARQUETAS | I16: 3,538.44 € | J16: 5.00%
B17: 5 | C17: PAVIMENTACION Y URBANIZACION | I17: 1,229.72 € | J17: 2.00%
B18: 6 | C18: REHABILITACIÓN ESTRUCTURAL DE DEPÓSITOS | I18: 20,859.19 € | J18: 30.00%
B19: 7 | C19: GEST. RESIDUOS CONSTRUCCIÓN Y DEMOLICIÓN | I19: 1,206.04 € | J19: 2.00%
B20: 19 | C20: PARTIDAS ESPECIFICAS DEL PROYECTO | I20: 30,404.42 € | J20: 43.00%
F21: TOTAL EJECUCIÓN MATERIAL | I21: =SUM(I10:I20) -> 69,926.58 €
E23: 21,00% I.V.A. | I23: 14,684.58 €
F24: TOTAL PRESUPUESTO GENERAL | I24: 84,611.17 €

Sheet Estilos (hidden)
